[Event "*** SCC Grand Prix: Titled Tuesday Blitz"]
[Site "Chess.com"]
[Date "2020.07.21"]
[Round "1"]
[White "InitiatingASC"]
[Black "13MiRacLe"]
[Result "1-0"]
[WhiteElo "2351"]
[BlackElo "2659"]
[TimeControl "180+1"]
[EndTime "10:08:18 PDT"]
[Termination "InitiatingASC won by resignation"]

1. Nf3 {[%clk 0:02:53.4]} 1... Nf6 {[%clk 0:02:59.1]} 2. g3 {[%clk 0:02:52.1]}
2... g6 {[%clk 0:02:59.4]} 3. Bg2 {[%clk 0:02:53]} 3... Bg7 {[%clk 0:02:59.9]}
4. O-O {[%clk 0:02:53.6]} 4... O-O {[%clk 0:03:00.5]} 5. c4 {[%clk 0:02:51.4]}
5... Nc6 {[%clk 0:02:56.8]} 6. d3 {[%clk 0:02:49.7]} 6... d5 {[%clk 0:02:51.8]}
7. Nbd2 {[%clk 0:02:48.5]} 7... e5 {[%clk 0:02:49.4]} 8. cxd5 {[%clk 0:02:46.9]}
8... Nxd5 {[%clk 0:02:49.3]} 9. Nc4 {[%clk 0:02:37.6]} 9... Be6 {[%clk
0:02:40.9]} 10. a3 {[%clk 0:02:29.7]} 10... a5 {[%clk 0:02:38.8]} 11. Qc2 {[%clk
0:02:23.8]} 11... h6 {[%clk 0:02:30.6]} 12. Ne3 {[%clk 0:02:10.3]} 12... Qd7
{[%clk 0:02:19.6]} 13. Nxd5 {[%clk 0:02:07.6]} 13... Bxd5 {[%clk 0:02:20.2]} 14.
Be3 {[%clk 0:02:07.6]} 14... Rfe8 {[%clk 0:02:13.2]} 15. Rac1 {[%clk 0:02:02.7]}
15... a4 {[%clk 0:02:07]} 16. Nd2 {[%clk 0:01:56.6]} 16... Bxg2 {[%clk
0:02:06.5]} 17. Kxg2 {[%clk 0:01:56.6]} 17... f5 {[%clk 0:01:31.4]} 18. f3
{[%clk 0:01:46.2]} 18... Kh7 {[%clk 0:01:30.2]} 19. Rfe1 {[%clk 0:01:28.7]}
19... Re7 {[%clk 0:01:29.4]} 20. Bf2 {[%clk 0:01:28.2]} 20... Nd4 {[%clk
0:01:23.6]} 21. Qc5 {[%clk 0:01:21.6]} 21... b6 {[%clk 0:01:16.9]} 22. Qc4
{[%clk 0:01:12.8]} 22... c5 {[%clk 0:01:12.9]} 23. e4 {[%clk 0:00:42]} 23... Rf8
{[%clk 0:01:05.2]} 24. Bxd4 {[%clk 0:00:35.5]} 24... exd4 {[%clk 0:00:38]} 25.
f4 {[%clk 0:00:25.3]} 25... fxe4 {[%clk 0:00:31]} 26. Rxe4 {[%clk 0:00:19]}
26... Rxe4 {[%clk 0:00:26.4]} 27. Nxe4 {[%clk 0:00:18.5]} 27... g5 {[%clk
0:00:18.5]} 28. fxg5 {[%clk 0:00:15.3]} 28... Qg4 {[%clk 0:00:17.6]} 29. Rf1
{[%clk 0:00:13.1]} 29... Rxf1 {[%clk 0:00:05]} 30. Kxf1 {[%clk 0:00:14]} 30...
Qf3+ {[%clk 0:00:04.7]} 31. Kg1 {[%clk 0:00:13.1]} 31... Qe3+ {[%clk 0:00:05.3]}
32. Kg2 {[%clk 0:00:13.2]} 32... Qe2+ {[%clk 0:00:04]} 33. Kg1 {[%clk
0:00:13.1]} 33... Qe3+ {[%clk 0:00:04.3]} 34. Kg2 {[%clk 0:00:13.5]} 34... Qe2+
{[%clk 0:00:04.7]} 35. Nf2 {[%clk 0:00:11.7]} 35... hxg5 {[%clk 0:00:03.5]} 36.
Qf7 {[%clk 0:00:11.6]} 36... Qe3 {[%clk 0:00:02.1]} 37. Qh5+ {[%clk 0:00:10.9]}
37... Kg8 {[%clk 0:00:02.6]} 38. Qg6 {[%clk 0:00:09.4]} 38... c4 {[%clk
0:00:02.8]} 39. Qxb6 {[%clk 0:00:06.1]} 39... cxd3 {[%clk 0:00:02.4]} 40. Qb8+
{[%clk 0:00:06]} 40... Kh7 {[%clk 0:00:02.5]} 41. Qb4 {[%clk 0:00:03.6]} 41...
d2 {[%clk 0:00:02.9]} 42. Qxa4 {[%clk 0:00:03.9]} 42... Bf6 {[%clk 0:00:01.4]}
43. Qc2+ {[%clk 0:00:03.4]} 43... Kg7 {[%clk 0:00:01.6]} 44. Qc7+ {[%clk
0:00:03.1]} 44... Kg6 {[%clk 0:00:01.8]} 45. Qc2+ {[%clk 0:00:03.7]} 45... Kg7
{[%clk 0:00:02.2]} 46. Qc7+ {[%clk 0:00:03.6]} 46... Qe7 {[%clk 0:00:02.8]} 47.
Qxe7+ {[%clk 0:00:03]} 47... Bxe7 {[%clk 0:00:03.7]} 48. Kf3 {[%clk 0:00:02.6]}
48... d3 {[%clk 0:00:04.2]} 49. Ke3 {[%clk 0:00:02.7]} 49... Bc5+ {[%clk
0:00:04.8]} 50. Kxd2 {[%clk 0:00:02.8]} 50... Bxf2 {[%clk 0:00:05.7]} 51. Kxd3
{[%clk 0:00:03.5]} 51... Bg1 {[%clk 0:00:06.3]} 52. h4 {[%clk 0:00:03.8]} 52...
g4 {[%clk 0:00:06.3]} 53. Ke4 {[%clk 0:00:04.1]} 53... Kg6 {[%clk 0:00:06.9]}
54. Kf4 {[%clk 0:00:03.9]} 54... Bd4 {[%clk 0:00:06.8]} 55. b4 {[%clk
0:00:03.6]} 55... Kf6 {[%clk 0:00:02.4]} 56. Kxg4 {[%clk 0:00:03]} 56... Bb2
{[%clk 0:00:02.1]} 57. a4 {[%clk 0:00:02.7]} 57... Ke6 {[%clk 0:00:03]} 58. b5
{[%clk 0:00:03.5]} 58... Bd4 {[%clk 0:00:03.1]} 59. Kh5 {[%clk 0:00:04]} 59...
Bb6 {[%clk 0:00:03.6]} 60. Kg6 {[%clk 0:00:04.7]} 60... Bc7 {[%clk 0:00:03.2]}
61. g4 {[%clk 0:00:04.8]} 1-0

[Event "*** SCC Grand Prix: Titled Tuesday Blitz"]
[Site "Chess.com"]
[Date "2020.07.21"]
[Round "1"]
[White "Reader777"]
[Black "ZverevLev"]
[Result "1-0"]
[WhiteElo "2644"]
[BlackElo "2314"]
[TimeControl "180+1"]
[EndTime "10:08:20 PDT"]
[Termination "Reader777 won on time"]

1. d4 {[%clk 0:03:00.9]} 1... Nf6 {[%clk 0:02:55.1]} 2. c4 {[%clk 0:03:01]} 2...
e6 {[%clk 0:02:54]} 3. g3 {[%clk 0:03:00.5]} 3... d5 {[%clk 0:02:51.9]} 4. Bg2
{[%clk 0:03:00.4]} 4... dxc4 {[%clk 0:02:51.7]} 5. Nf3 {[%clk 0:03:00.2]} 5...
Be7 {[%clk 0:02:49.5]} 6. O-O {[%clk 0:02:59.5]} 6... O-O {[%clk 0:02:49]} 7.
Qc2 {[%clk 0:02:59.6]} 7... a6 {[%clk 0:02:43.3]} 8. a4 {[%clk 0:02:58]} 8...
Nc6 {[%clk 0:02:39.9]} 9. Qxc4 {[%clk 0:02:57]} 9... Qd5 {[%clk 0:02:31.1]} 10.
Nbd2 {[%clk 0:02:50.2]} 10... Qxc4 {[%clk 0:02:30]} 11. Nxc4 {[%clk 0:02:49.6]}
11... Rb8 {[%clk 0:02:22.9]} 12. a5 {[%clk 0:02:40.6]} 12... b5 {[%clk
0:02:20.8]} 13. axb6 {[%clk 0:02:40.1]} 13... cxb6 {[%clk 0:02:21.6]} 14. Bf4
{[%clk 0:02:39.4]} 14... Rb7 {[%clk 0:02:19]} 15. Rfc1 {[%clk 0:02:08.9]} 15...
b5 {[%clk 0:02:02.1]} 16. Nd6 {[%clk 0:02:07.4]} 16... Rb6 {[%clk 0:01:41.4]}
17. Nxc8 {[%clk 0:02:01.2]} 17... Rxc8 {[%clk 0:01:42.3]} 18. Ne5 {[%clk
0:02:00.9]} 18... Na7 {[%clk 0:01:40.4]} 19. Rxc8+ {[%clk 0:01:52.4]} 19... Nxc8
{[%clk 0:01:41.3]} 20. Rc1 {[%clk 0:01:44.5]} 20... Nd6 {[%clk 0:01:36.4]} 21.
Rc7 {[%clk 0:01:22]} 21... Bf8 {[%clk 0:01:34.7]} 22. Nc6 {[%clk 0:01:16.5]}
22... Nde8 {[%clk 0:01:05.2]} 23. Rc8 {[%clk 0:01:10.9]} 23... Rb7 {[%clk
0:01:00.8]} 24. Nb8 {[%clk 0:01:00.8]} 24... Ra7 {[%clk 0:00:55.2]} 25. Bc6
{[%clk 0:00:55.9]} 25... Re7 {[%clk 0:00:43.5]} 26. Nxa6 {[%clk 0:00:54.8]}
26... h6 {[%clk 0:00:36.6]} 27. Nc7 {[%clk 0:00:49.4]} 27... Nxc7 {[%clk
0:00:31.4]} 28. Bxc7 {[%clk 0:00:49.6]} 28... Nh7 {[%clk 0:00:25.8]} 29. Bd6
{[%clk 0:00:43.8]} 29... Ra7 {[%clk 0:00:24.5]} 30. Bxb5 {[%clk 0:00:42]} 30...
Rb7 {[%clk 0:00:22.9]} 31. Bxf8 {[%clk 0:00:40.1]} 31... Nxf8 {[%clk 0:00:22.1]}
32. Rc5 {[%clk 0:00:39]} 32... Nd7 {[%clk 0:00:20]} 33. Bxd7 {[%clk 0:00:38.5]}
33... Rxd7 {[%clk 0:00:20.9]} 34. e3 {[%clk 0:00:38.7]} 34... Rb7 {[%clk
0:00:20.4]} 35. Rc2 {[%clk 0:00:38.4]} 35... Kf8 {[%clk 0:00:20]} 36. Kg2 {[%clk
0:00:38.7]} 36... Ke7 {[%clk 0:00:20.1]} 37. g4 {[%clk 0:00:38.7]} 37... Kd6
{[%clk 0:00:18.4]} 38. Kf3 {[%clk 0:00:39]} 38... Rb4 {[%clk 0:00:16.8]} 39. h4
{[%clk 0:00:37.7]} 39... g5 {[%clk 0:00:14.3]} 40. hxg5 {[%clk 0:00:33]} 40...
hxg5 {[%clk 0:00:15.2]} 41. Ke4 {[%clk 0:00:33.5]} 41... Rb3 {[%clk 0:00:13.7]}
42. Rd2 {[%clk 0:00:28.7]} 42... Rb4 {[%clk 0:00:10.5]} 43. Kd3 {[%clk 0:00:27]}
43... Rb3+ {[%clk 0:00:09.6]} 44. Kc4 {[%clk 0:00:26.5]} 44... Rb8 {[%clk
0:00:10.2]} 45. b4 {[%clk 0:00:25.6]} 45... Rc8+ {[%clk 0:00:10]} 46. Kd3 {[%clk
0:00:25.6]} 46... Rb8 {[%clk 0:00:04.1]} 47. Rb2 {[%clk 0:00:25.9]} 47... Rb5
{[%clk 0:00:03.5]} 48. Kc4 {[%clk 0:00:25.7]} 48... Kc6 {[%clk 0:00:03.4]} 49.
Ra2 {[%clk 0:00:24.9]} 49... Rb6 {[%clk 0:00:03.1]} 50. Ra5 {[%clk 0:00:21.4]}
50... f6 {[%clk 0:00:02.6]} 51. Rc5+ {[%clk 0:00:21.7]} 51... Kd6 {[%clk
0:00:01.9]} 52. b5 {[%clk 0:00:21.5]} 52... Rb7 {[%clk 0:00:01.9]} 53. Rc6+
{[%clk 0:00:21.8]} 53... Kd7 {[%clk 0:00:02.1]} 54. Kc5 {[%clk 0:00:22.5]} 54...
Rb8 {[%clk 0:00:02.7]} 55. b6 {[%clk 0:00:21.3]} 55... Ra8 {[%clk 0:00:02.6]}
56. Rc7+ {[%clk 0:00:21.3]} 56... Ke8 {[%clk 0:00:03.2]} 57. b7 {[%clk
0:00:19.6]} 57... Rb8 {[%clk 0:00:01.7]} 58. Rc8+ {[%clk 0:00:19.6]} 1-0

[Event "*** SCC Grand Prix: Titled Tuesday Blitz"]
[Site "Chess.com"]
[Date "2020.07.21"]
[Round "1"]
[White "Andrei_Belozerov"]
[Black "lelya96"]
[Result "1-0"]
[WhiteElo "2555"]
[BlackElo "2166"]
[TimeControl "180+1"]
[EndTime "10:08:22 PDT"]
[Termination "Andrei_Belozerov won on time"]

1. e4 {[%clk 0:03:00.7]} 1... e5 {[%clk 0:02:58.6]} 2. Nf3 {[%clk 0:03:00.2]}
2... Nc6 {[%clk 0:02:57.5]} 3. Bb5 {[%clk 0:02:59.7]} 3... a6 {[%clk 0:02:57]}
4. Ba4 {[%clk 0:02:53.3]} 4... Nf6 {[%clk 0:02:55.5]} 5. O-O {[%clk 0:02:52.4]}
5... b5 {[%clk 0:02:54.8]} 6. Bb3 {[%clk 0:02:51.7]} 6... Bc5 {[%clk 0:02:55.7]}
7. d3 {[%clk 0:02:49.9]} 7... d6 {[%clk 0:02:54.9]} 8. Be3 {[%clk 0:02:49.4]}
8... Bb6 {[%clk 0:02:53.6]} 9. Bxb6 {[%clk 0:02:47.7]} 9... cxb6 {[%clk
0:02:53]} 10. c3 {[%clk 0:02:36]} 10... O-O {[%clk 0:02:50.9]} 11. Nbd2 {[%clk
0:02:35.2]} 11... Ne7 {[%clk 0:02:44.4]} 12. Re1 {[%clk 0:02:29.8]} 12... Ng6
{[%clk 0:02:42.9]} 13. Nf1 {[%clk 0:01:49.9]} 13... Nf4 {[%clk 0:02:16.6]} 14.
Ng3 {[%clk 0:01:48.5]} 14... Bg4 {[%clk 0:02:13.6]} 15. h3 {[%clk 0:01:47.3]}
15... Bxh3 {[%clk 0:02:04.9]} 16. gxh3 {[%clk 0:01:41.5]} 16... Nxh3+ {[%clk
0:02:05.8]} 17. Kf1 {[%clk 0:01:26.9]} 17... Ng4 {[%clk 0:02:01.1]} 18. Ke2
{[%clk 0:00:38.3]} 18... Nf4+ {[%clk 0:01:47.7]} 19. Kd2 {[%clk 0:00:37.8]}
19... Nxf2 {[%clk 0:01:46.5]} 20. Qc2 {[%clk 0:00:35.4]} 20... N4xd3 {[%clk
0:01:31]} 21. Rg1 {[%clk 0:00:33.8]} 21... Qf6 {[%clk 0:01:22.4]} 22. Nf5 {[%clk
0:00:27.7]} 22... Nxe4+ {[%clk 0:01:04]} 23. Kxd3 {[%clk 0:00:26.8]} 23... Qxf5
{[%clk 0:01:03]} 24. Ke3 {[%clk 0:00:26.8]} 24... Qf4+ {[%clk 0:01:01.3]} 25.
Ke2 {[%clk 0:00:26.9]} 25... Ng3+ {[%clk 0:00:55.6]} 26. Rxg3 {[%clk 0:00:26.9]}
26... Qxg3 {[%clk 0:00:54.2]} 27. Rg1 {[%clk 0:00:27.3]} 27... Qf4 {[%clk
0:00:40.3]} 28. Bd5 {[%clk 0:00:21]} 28... e4 {[%clk 0:00:31.5]} 29. Nd4 {[%clk
0:00:12.9]} 29... Rae8 {[%clk 0:00:19.1]} 30. Ke1 {[%clk 0:00:10.6]} 30... e3
{[%clk 0:00:18.7]} 31. Qg2 {[%clk 0:00:09.4]} 31... Qf2+ {[%clk 0:00:18]} 32.
Qxf2 {[%clk 0:00:09.4]} 32... exf2+ {[%clk 0:00:18.9]} 33. Kxf2 {[%clk
0:00:10.3]} 33... Re5 {[%clk 0:00:18.5]} 34. Bb3 {[%clk 0:00:09.5]} 34... g6
{[%clk 0:00:17.6]} 35. Nf3 {[%clk 0:00:09]} 35... Rf5 {[%clk 0:00:16]} 36. Rd1
{[%clk 0:00:08.9]} 36... Rd8 {[%clk 0:00:14.6]} 37. Rd4 {[%clk 0:00:08.9]} 37...
a5 {[%clk 0:00:13.8]} 38. Kg3 {[%clk 0:00:08.6]} 38... a4 {[%clk 0:00:13.4]} 39.
Bc2 {[%clk 0:00:08.9]} 39... Rc5 {[%clk 0:00:11.3]} 40. Bd3 {[%clk 0:00:08.8]}
40... Kg7 {[%clk 0:00:10.5]} 41. Nd2 {[%clk 0:00:08.7]} 41... Re8 {[%clk
0:00:10.4]} 42. Ne4 {[%clk 0:00:08.6]} 42... Rce5 {[%clk 0:00:10.4]} 43. Nxd6
{[%clk 0:00:08.2]} 43... Re3+ {[%clk 0:00:10.4]} 44. Kf2 {[%clk 0:00:08.5]}
44... R8e6 {[%clk 0:00:10.1]} 45. Nxb5 {[%clk 0:00:07.4]} 45... R3e5 {[%clk
0:00:08.4]} 46. Nd6 {[%clk 0:00:05.8]} 46... Rf6+ {[%clk 0:00:08.4]} 47. Kg2
{[%clk 0:00:05.4]} 47... Rg5+ {[%clk 0:00:08.3]} 48. Kh3 {[%clk 0:00:03.6]}
48... Rf3+ {[%clk 0:00:08.1]} 49. Kh2 {[%clk 0:00:03.9]} 49... Rf2+ {[%clk
0:00:06.9]} 50. Kh3 {[%clk 0:00:04.3]} 50... h5 {[%clk 0:00:04.8]} 51. Ne4
{[%clk 0:00:03.7]} 51... Rf3+ {[%clk 0:00:04.4]} 52. Kh2 {[%clk 0:00:04]} 52...
Rg4 {[%clk 0:00:02.9]} 53. Rd7 {[%clk 0:00:02.5]} 1-0

[Event "*** SCC Grand Prix: Titled Tuesday Blitz"]
[Site "Chess.com"]
[Date "2020.07.21"]
[Round "1"]
[White "Shuvalov"]
[Black "tylityli"]
[Result "1-0"]
[WhiteElo "2532"]
[BlackElo "2133"]
[TimeControl "180+1"]
[EndTime "10:08:23 PDT"]
[Termination "Shuvalov won on time"]

1. Nf3 {[%clk 0:02:49.8]} 1... Nc6 {[%clk 0:02:52.9]} 2. d4 {[%clk 0:02:49]}
2... d5 {[%clk 0:02:51.5]} 3. c4 {[%clk 0:02:48.4]} 3... Bg4 {[%clk 0:02:50.5]}
4. Nc3 {[%clk 0:02:47.1]} 4... Nf6 {[%clk 0:02:49.8]} 5. cxd5 {[%clk 0:02:35.3]}
5... Nxd5 {[%clk 0:02:48.6]} 6. e4 {[%clk 0:02:35.1]} 6... Nxc3 {[%clk
0:02:48.3]} 7. bxc3 {[%clk 0:02:36]} 7... e5 {[%clk 0:02:38]} 8. Bb5 {[%clk
0:02:03.8]} 8... exd4 {[%clk 0:02:29.6]} 9. cxd4 {[%clk 0:02:00.4]} 9... Bb4+
{[%clk 0:02:28.5]} 10. Kf1 {[%clk 0:01:37.9]} 10... O-O {[%clk 0:02:19]} 11. Bb2
{[%clk 0:01:34.3]} 11... a6 {[%clk 0:02:01.5]} 12. Be2 {[%clk 0:01:27.5]} 12...
Ne7 {[%clk 0:01:50.8]} 13. h3 {[%clk 0:01:24.1]} 13... Bh5 {[%clk 0:01:49]} 14.
a3 {[%clk 0:01:20.5]} 14... Ba5 {[%clk 0:01:46.6]} 15. Ne5 {[%clk 0:01:06.2]}
15... Bxe2+ {[%clk 0:01:44.5]} 16. Qxe2 {[%clk 0:01:07.1]} 16... Bb6 {[%clk
0:01:38.8]} 17. Rd1 {[%clk 0:01:06]} 17... Ng6 {[%clk 0:01:32.9]} 18. Nxg6
{[%clk 0:00:52.7]} 18... hxg6 {[%clk 0:01:30.2]} 19. g3 {[%clk 0:00:50.1]} 19...
Re8 {[%clk 0:01:28.2]} 20. Kg2 {[%clk 0:00:49.9]} 20... Qd7 {[%clk 0:01:27.1]}
21. Rhe1 {[%clk 0:00:49.3]} 21... Qb5 {[%clk 0:01:26.4]} 22. Qc2 {[%clk
0:00:46.2]} 22... Rad8 {[%clk 0:01:23.6]} 23. d5 {[%clk 0:00:42.9]} 23... Qc5
{[%clk 0:01:18.5]} 24. Qxc5 {[%clk 0:00:38.1]} 24... Bxc5 {[%clk 0:01:19.4]} 25.
Rc1 {[%clk 0:00:37.3]} 25... Bb6 {[%clk 0:01:11.9]} 26. f3 {[%clk 0:00:32.6]}
26... f6 {[%clk 0:01:09.4]} 27. Red1 {[%clk 0:00:31.7]} 27... Kf7 {[%clk
0:01:04]} 28. Bd4 {[%clk 0:00:29.6]} 28... Rc8 {[%clk 0:00:51.6]} 29. d6 {[%clk
0:00:22.3]} 29... Bxd4 {[%clk 0:00:38.5]} 30. d7 {[%clk 0:00:22]} 30... Be5
{[%clk 0:00:34.3]} 31. dxe8=Q+ {[%clk 0:00:20.8]} 31... Rxe8 {[%clk 0:00:32.6]}
32. Rd7+ {[%clk 0:00:18]} 32... Re7 {[%clk 0:00:31.2]} 33. Rxe7+ {[%clk
0:00:18]} 33... Kxe7 {[%clk 0:00:32]} 34. a4 {[%clk 0:00:18.4]} 34... Kd6 {[%clk
0:00:25.9]} 35. f4 {[%clk 0:00:18.2]} 35... Bd4 {[%clk 0:00:25.9]} 36. Kf3
{[%clk 0:00:17.8]} 36... c5 {[%clk 0:00:25.8]} 37. Rb1 {[%clk 0:00:15.3]} 37...
Kc6 {[%clk 0:00:25.4]} 38. a5 {[%clk 0:00:15.4]} 38... Bc3 {[%clk 0:00:25.2]}
39. Rb6+ {[%clk 0:00:14.7]} 39... Kc7 {[%clk 0:00:23.8]} 40. Re6 {[%clk
0:00:14.2]} 40... Kd7 {[%clk 0:00:23.6]} 41. Rb6 {[%clk 0:00:14]} 41... Kc7
{[%clk 0:00:23.1]} 42. Re6 {[%clk 0:00:13.2]} 42... Kd7 {[%clk 0:00:23.2]} 43.
f5 {[%clk 0:00:12.9]} 43... Bxa5 {[%clk 0:00:19.9]} 44. Ke2 {[%clk 0:00:12.4]}
44... Bc3 {[%clk 0:00:18.6]} 45. Kd3 {[%clk 0:00:12.3]} 45... Be5 {[%clk
0:00:16.5]} 46. g4 {[%clk 0:00:11.9]} 46... Bd4 {[%clk 0:00:13.1]} 47. Kc4
{[%clk 0:00:11.9]} 47... b5+ {[%clk 0:00:12.6]} 48. Kd5 {[%clk 0:00:12.1]} 48...
a5 {[%clk 0:00:10.4]} 49. Rb6 {[%clk 0:00:11.8]} 49... b4 {[%clk 0:00:05.2]} 50.
Rb7+ {[%clk 0:00:11.6]} 50... Kc8 {[%clk 0:00:04.8]} 51. Kc6 {[%clk 0:00:11.5]}
51... a4 {[%clk 0:00:03.9]} 52. Ra7 {[%clk 0:00:10.8]} 52... Kd8 {[%clk
0:00:03.6]} 53. Rxa4 {[%clk 0:00:10.5]} 53... b3 {[%clk 0:00:03.7]} 54. Ra8+
{[%clk 0:00:09.7]} 54... Ke7 {[%clk 0:00:03.3]} 55. Rb8 {[%clk 0:00:09.7]} 55...
b2 {[%clk 0:00:02.9]} 56. Kd5 {[%clk 0:00:09.7]} 56... gxf5 {[%clk 0:00:02.3]}
57. exf5 {[%clk 0:00:09.2]} 57... Kf7 {[%clk 0:00:02]} 58. Rb7+ {[%clk
0:00:08.8]} 58... Kf8 {[%clk 0:00:02.1]} 59. h4 {[%clk 0:00:08.5]} 59... Kg8
{[%clk 0:00:01.9]} 60. g5 {[%clk 0:00:08.6]} 60... fxg5 {[%clk 0:00:01.3]} 61.
hxg5 {[%clk 0:00:09.5]} 1-0

[Event "*** SCC Grand Prix: Titled Tuesday Blitz"]
[Site "Chess.com"]
[Date "2020.07.21"]
[Round "1"]
[White "Speshka"]
[Black "Nf3c5"]
[Result "0-1"]
[WhiteElo "2234"]
[BlackElo "2587"]
[TimeControl "180+1"]
[EndTime "10:08:26 PDT"]
[Termination "Nf3c5 won on time"]

1. e4 {[%clk 0:03:00.7]} 1... c5 {[%clk 0:02:59.7]} 2. Nf3 {[%clk 0:02:59.6]}
2... d6 {[%clk 0:02:59.6]} 3. d4 {[%clk 0:02:59]} 3... cxd4 {[%clk 0:03:00.5]}
4. Nxd4 {[%clk 0:02:58.9]} 4... Nf6 {[%clk 0:03:00.8]} 5. Nc3 {[%clk 0:02:56.6]}
5... a6 {[%clk 0:03:00.9]} 6. Qd3 {[%clk 0:02:55]} 6... g6 {[%clk 0:02:58.5]} 7.
Bg5 {[%clk 0:02:43.2]} 7... Bg7 {[%clk 0:02:57]} 8. O-O-O {[%clk 0:02:42.1]}
8... O-O {[%clk 0:02:54.3]} 9. h4 {[%clk 0:02:41.2]} 9... Nc6 {[%clk 0:02:37.8]}
10. Nxc6 {[%clk 0:02:39.5]} 10... bxc6 {[%clk 0:02:38]} 11. e5 {[%clk
0:02:21.6]} 11... Ng4 {[%clk 0:02:35.2]} 12. exd6 {[%clk 0:02:16.6]} 12... Qxd6
{[%clk 0:01:52.8]} 13. Qxd6 {[%clk 0:01:41.9]} 13... exd6 {[%clk 0:01:53.7]} 14.
Rxd6 {[%clk 0:01:34.5]} 14... Nxf2 {[%clk 0:01:50.9]} 15. Rg1 {[%clk 0:01:32]}
15... Be5 {[%clk 0:01:07.6]} 16. Rd2 {[%clk 0:01:26.6]} 16... Bh2 {[%clk
0:01:06.7]} 17. Rxf2 {[%clk 0:01:25.4]} 17... Bxg1 {[%clk 0:01:06.3]} 18. Rd2
{[%clk 0:01:23.6]} 18... Be6 {[%clk 0:01:06.2]} 19. Ne4 {[%clk 0:01:16.1]} 19...
Bb6 {[%clk 0:01:03.6]} 20. b3 {[%clk 0:00:48.6]} 20... f5 {[%clk 0:01:00.4]} 21.
Nd6 {[%clk 0:00:45.5]} 21... Bd8 {[%clk 0:00:55]} 22. Bh6 {[%clk 0:00:44.4]}
22... Bxh4 {[%clk 0:00:55.1]} 23. Bxf8 {[%clk 0:00:37.1]} 23... Bg5 {[%clk
0:00:53.9]} 24. Be7 {[%clk 0:00:30.1]} 24... Bxe7 {[%clk 0:00:52]} 25. Kb2
{[%clk 0:00:18.3]} 25... Bg5 {[%clk 0:00:46.7]} 26. Re2 {[%clk 0:00:16.5]} 26...
Bf6+ {[%clk 0:00:45.8]} 27. c3 {[%clk 0:00:15.7]} 27... Bd5 {[%clk 0:00:41.3]}
28. Rd2 {[%clk 0:00:15.4]} 28... Rd8 {[%clk 0:00:39.9]} 29. Nc4 {[%clk
0:00:14.7]} 29... Kf7 {[%clk 0:00:39.3]} 30. Na5 {[%clk 0:00:10.2]} 30... Bg5
{[%clk 0:00:35]} 31. Rd1 {[%clk 0:00:08.6]} 31... Re8 {[%clk 0:00:34.5]} 32. c4
{[%clk 0:00:06.1]} 32... Bf6+ {[%clk 0:00:33.7]} 33. Ka3 {[%clk 0:00:05.6]}
33... Be4 {[%clk 0:00:34.2]} 34. Nb7 {[%clk 0:00:04]} 34... Be7+ {[%clk
0:00:33.7]} 35. Nd6+ {[%clk 0:00:03.9]} 35... Ke6 {[%clk 0:00:34]} 36. c5 {[%clk
0:00:03.7]} 36... Bxd6 {[%clk 0:00:31.6]} 37. cxd6 {[%clk 0:00:03.1]} 37... Rd8
{[%clk 0:00:31.4]} 38. d7 {[%clk 0:00:02.1]} 38... Rxd7 {[%clk 0:00:30.3]} 39.
Rxd7 {[%clk 0:00:01.8]} 39... Kxd7 {[%clk 0:00:31.2]} 40. Kb4 {[%clk 0:00:02.7]}
40... Kd6 {[%clk 0:00:30.4]} 41. Ka5 {[%clk 0:00:02.8]} 41... Bb1 {[%clk
0:00:30.7]} 42. Kxa6 {[%clk 0:00:03.7]} 42... Bxa2 {[%clk 0:00:30.9]} 43. b4
{[%clk 0:00:04.6]} 43... Bd5 {[%clk 0:00:31.4]} 44. b5 {[%clk 0:00:04.4]} 44...
cxb5 {[%clk 0:00:29.9]} 45. Kxb5 {[%clk 0:00:04.2]} 45... Ke5 {[%clk 0:00:30.3]}
46. Kc5 {[%clk 0:00:04.2]} 46... Be4 {[%clk 0:00:29.2]} 47. Kc4 {[%clk
0:00:03.6]} 47... Kf4 {[%clk 0:00:29.2]} 48. Kc3 {[%clk 0:00:03.5]} 48... Kg3
{[%clk 0:00:28.8]} 49. Kd2 {[%clk 0:00:03.6]} 49... Bxg2 {[%clk 0:00:28.6]} 50.
Bc4 {[%clk 0:00:02.6]} 50... g5 {[%clk 0:00:26]} 51. Be6 {[%clk 0:00:01.6]}
51... f4 {[%clk 0:00:25.8]} 0-1